[Event "Late-Titled-Tuesday-Blitz-December-26-2023"]
[Site "Chess.com"]
[Date "2023.12.26"]
[Round "9"]
[White "powermove"]
[Black "Vision_64"]
[Result "1/2-1/2"]
[WhiteElo "2031"]
[BlackElo "2279"]
[TimeControl "180+1"]
[EndTime "15:44:33 PST"]
[Termination "Game drawn - insufficient material"]

1. d4 {[%clk 0:03:00.9]} 1... Nf6 {[%clk 0:02:56.8]} 2. c4 {[%clk 0:03:00.4]}
2... g6 {[%clk 0:02:54]} 3. Nc3 {[%clk 0:02:59.5]} 3... Bg7 {[%clk 0:02:54.6]}
4. e4 {[%clk 0:02:59.1]} 4... d6 {[%clk 0:02:54.4]} 5. Nf3 {[%clk 0:02:59.2]}
5... O-O {[%clk 0:02:54]} 6. Be2 {[%clk 0:02:58.9]} 6... e5 {[%clk 0:02:54.6]}
7. dxe5 {[%clk 0:02:56.2]} 7... dxe5 {[%clk 0:02:54.1]} 8. Qxd8 {[%clk
0:02:51.7]} 8... Rxd8 {[%clk 0:02:52.9]} 9. Bg5 {[%clk 0:02:51.6]} 9... c6
{[%clk 0:02:42.7]} 10. Nxe5 {[%clk 0:02:28.3]} 10... Re8 {[%clk 0:02:42.1]} 11.
f4 {[%clk 0:02:26.9]} 11... h6 {[%clk 0:02:12.1]} 12. Bh4 {[%clk 0:02:16.3]}
12... Nbd7 {[%clk 0:01:59.4]} 13. Nxd7 {[%clk 0:02:13.7]} 13... Bxd7 {[%clk
0:01:59.1]} 14. e5 {[%clk 0:02:12.9]} 14... Nh7 {[%clk 0:01:47.4]} 15. O-O-O
{[%clk 0:02:09.2]} 15... Be6 {[%clk 0:01:32.3]} 16. Bf2 {[%clk 0:01:59.4]} 16...
f6 {[%clk 0:01:10.6]} 17. exf6 {[%clk 0:01:49.1]} 17... Nxf6 {[%clk 0:01:11.5]}
18. Bd3 {[%clk 0:01:43.5]} 18... Kf7 {[%clk 0:00:59]} 19. h3 {[%clk 0:01:42.7]}
19... a5 {[%clk 0:00:52]} 20. g4 {[%clk 0:01:41]} 20... a4 {[%clk 0:00:41.6]}
21. Rhe1 {[%clk 0:01:38.7]} 21... a3 {[%clk 0:00:41.3]} 22. b3 {[%clk
0:01:37.6]} 22... Nxg4 {[%clk 0:00:38.1]} 23. hxg4 {[%clk 0:01:32.9]} 23... Bxc3
{[%clk 0:00:38.2]} 24. Rg1 {[%clk 0:01:24.6]} 24... Kg7 {[%clk 0:00:24.5]} 25.
Kc2 {[%clk 0:01:18.9]} 25... Bb2 {[%clk 0:00:21.6]} 26. f5 {[%clk 0:01:13.2]}
26... Bf7 {[%clk 0:00:20.6]} 27. g5 {[%clk 0:01:06.5]} 27... hxg5 {[%clk
0:00:18.5]} 28. Rxg5 {[%clk 0:01:06.3]} 28... Bf6 {[%clk 0:00:18.1]} 29. Rg2
{[%clk 0:00:57.5]} 29... g5 {[%clk 0:00:17.7]} 30. Rh2 {[%clk 0:00:48.9]} 30...
Rh8 {[%clk 0:00:17.1]} 31. Bg3 {[%clk 0:00:39.2]} 31... Rxh2+ {[%clk 0:00:16.5]}
32. Bxh2 {[%clk 0:00:38.8]} 32... Rh8 {[%clk 0:00:16.6]} 33. Rd2 {[%clk
0:00:36.6]} 33... Rh4 {[%clk 0:00:13.2]} 34. Bd6 {[%clk 0:00:25.1]} 34... Bb2
{[%clk 0:00:12.7]} 35. f6+ {[%clk 0:00:20.2]} 35... Bxf6 {[%clk 0:00:12.2]} 36.
Bxa3 {[%clk 0:00:19]} 36... Bg6 {[%clk 0:00:10.8]} 37. Bxg6 {[%clk 0:00:16.1]}
37... Kxg6 {[%clk 0:00:11.7]} 38. b4 {[%clk 0:00:16.1]} 38... g4 {[%clk
0:00:12]} 39. b5 {[%clk 0:00:15.6]} 39... g3 {[%clk 0:00:10.6]} 40. Kb3 {[%clk
0:00:15.1]} 40... Rg4 {[%clk 0:00:09.6]} 41. Rg2 {[%clk 0:00:14.8]} 41... Kf5
{[%clk 0:00:09.5]} 42. bxc6 {[%clk 0:00:14.5]} 42... bxc6 {[%clk 0:00:10.4]} 43.
Bc5 {[%clk 0:00:14.1]} 43... Kf4 {[%clk 0:00:09.4]} 44. a4 {[%clk 0:00:14]}
44... Kf3 {[%clk 0:00:09.6]} 45. Rg1 {[%clk 0:00:13.4]} 45... Bd4 {[%clk
0:00:07.8]} 46. Bxd4 {[%clk 0:00:10]} 46... Rxd4 {[%clk 0:00:07.9]} 47. a5
{[%clk 0:00:10.2]} 47... Kf2 {[%clk 0:00:07.5]} 48. Rb1 {[%clk 0:00:09.2]} 48...
g2 {[%clk 0:00:06.6]} 49. a6 {[%clk 0:00:08.7]} 49... g1=Q {[%clk 0:00:04.5]}
50. Rxg1 {[%clk 0:00:08.5]} 50... Kxg1 {[%clk 0:00:05.4]} 51. Kb4 {[%clk
0:00:09]} 51... Kf2 {[%clk 0:00:03.9]} 52. Kc5 {[%clk 0:00:09.2]} 52... Ke3
{[%clk 0:00:02.2]} 53. a7 {[%clk 0:00:08.7]} 53... Rd8 {[%clk 0:00:01.7]} 54.
Kxc6 {[%clk 0:00:09.2]} 54... Kd4 {[%clk 0:00:01.9]} 55. Kb7 {[%clk 0:00:08.5]}
55... Kxc4 {[%clk 0:00:01.7]} 56. a8=Q {[%clk 0:00:08.3]} 56... Rxa8 {[%clk
0:00:01.9]} 57. Kxa8 {[%clk 0:00:08.6]} 1/2-1/2

[Event "Late-Titled-Tuesday-Blitz-December-26-2023"]
[Site "Chess.com"]
[Date "2023.12.26"]
[Round "9"]
[White "Statham_l3"]
[Black "NovakRatko"]
[Result "1-0"]
[WhiteElo "2560"]
[BlackElo "2433"]
[TimeControl "180+1"]
[EndTime "15:44:35 PST"]
[Termination "Statham_l3 won on time"]

1. e4 {[%clk 0:03:00.9]} 1... d5 {[%clk 0:02:59.5]} 2. exd5 {[%clk 0:03:00]}
2... c6 {[%clk 0:03:00.1]} 3. dxc6 {[%clk 0:02:41.3]} 3... Nxc6 {[%clk 0:03:01]}
4. Nf3 {[%clk 0:02:42.1]} 4... e5 {[%clk 0:03:01.1]} 5. Bb5 {[%clk 0:02:42.5]}
5... Bd6 {[%clk 0:03:01.4]} 6. d4 {[%clk 0:02:35.7]} 6... exd4 {[%clk
0:03:02.3]} 7. O-O {[%clk 0:02:33.3]} 7... Ne7 {[%clk 0:03:02]} 8. Qxd4 {[%clk
0:02:12.3]} 8... O-O {[%clk 0:03:00.6]} 9. Qh4 {[%clk 0:02:12]} 9... Ng6 {[%clk
0:02:43.5]} 10. Qxd8 {[%clk 0:01:54.5]} 10... Rxd8 {[%clk 0:02:44.4]} 11. Bg5
{[%clk 0:01:49.2]} 11... f6 {[%clk 0:02:43.3]} 12. Be3 {[%clk 0:01:47.6]} 12...
Bf5 {[%clk 0:02:37.2]} 13. c3 {[%clk 0:01:26.2]} 13... a6 {[%clk 0:02:31.4]} 14.
Bc4+ {[%clk 0:01:26.3]} 14... Kh8 {[%clk 0:02:31.4]} 15. Nd4 {[%clk 0:01:27]}
15... Nxd4 {[%clk 0:02:20.4]} 16. Bxd4 {[%clk 0:01:27.9]} 16... Ne5 {[%clk
0:02:20.2]} 17. Be2 {[%clk 0:01:23.4]} 17... Nc6 {[%clk 0:02:17.3]} 18. Be3
{[%clk 0:01:17.6]} 18... b5 {[%clk 0:02:14.7]} 19. Nd2 {[%clk 0:01:15.5]} 19...
Ne5 {[%clk 0:02:09.9]} 20. Nf3 {[%clk 0:01:09.1]} 20... Ng4 {[%clk 0:02:07.2]}
21. Bd4 {[%clk 0:01:03.4]} 21... Re8 {[%clk 0:01:51.1]} 22. Rfe1 {[%clk
0:01:02.9]} 22... Be4 {[%clk 0:01:41.5]} 23. h3 {[%clk 0:01:02.3]} 23... Nh6
{[%clk 0:01:38.7]} 24. Nh4 {[%clk 0:00:52.7]} 24... Kg8 {[%clk 0:01:18.8]} 25.
Bh5 {[%clk 0:00:52.5]} 25... g6 {[%clk 0:01:13]} 26. Bf3 {[%clk 0:00:38.9]}
26... Bxf3 {[%clk 0:01:12.8]} 27. Nxf3 {[%clk 0:00:39.3]} 27... Kf7 {[%clk
0:01:12.6]} 28. g4 {[%clk 0:00:33.8]} 28... Ng8 {[%clk 0:00:58]} 29. Kf1 {[%clk
0:00:26.1]} 29... Ne7 {[%clk 0:00:57.7]} 30. a4 {[%clk 0:00:24.7]} 30... Nc6
{[%clk 0:00:56.3]} 31. axb5 {[%clk 0:00:23.1]} 31... axb5 {[%clk 0:00:54.1]} 32.
g5 {[%clk 0:00:16.7]} 32... f5 {[%clk 0:00:46]} 33. h4 {[%clk 0:00:16.8]} 33...
b4 {[%clk 0:00:34.3]} 34. Kg2 {[%clk 0:00:16.5]} 34... Nxd4 {[%clk 0:00:30]} 35.
Nxd4 {[%clk 0:00:12.2]} 35... bxc3 {[%clk 0:00:27.3]} 36. bxc3 {[%clk
0:00:13.1]} 36... Be5 {[%clk 0:00:23.8]} 37. Rxa8 {[%clk 0:00:11.5]} 37... Rxa8
{[%clk 0:00:21.9]} 38. Rxe5 {[%clk 0:00:11.3]} 38... Rc8 {[%clk 0:00:20.9]} 39.
Re3 {[%clk 0:00:10.1]} 39... Rc4 {[%clk 0:00:19]} 40. Rd3 {[%clk 0:00:09.4]}
40... Rc7 {[%clk 0:00:14.2]} 41. Nf3 {[%clk 0:00:09.7]} 41... Ke6 {[%clk
0:00:10.8]} 42. Kg3 {[%clk 0:00:09.6]} 42... Ra7 {[%clk 0:00:06.8]} 43. Rd4
{[%clk 0:00:09]} 43... Ra1 {[%clk 0:00:06.2]} 44. Kf4 {[%clk 0:00:08.9]} 44...
Rh1 {[%clk 0:00:05.3]} 45. Rd3 {[%clk 0:00:08.3]} 45... Ke7 {[%clk 0:00:04]} 46.
c4 {[%clk 0:00:08.8]} 46... Ke6 {[%clk 0:00:03.9]} 47. c5 {[%clk 0:00:09.1]}
47... Rc1 {[%clk 0:00:04.1]} 48. Rd6+ {[%clk 0:00:07.8]} 48... Ke7 {[%clk
0:00:04.1]} 49. Rd5 {[%clk 0:00:08.2]} 49... Rc4+ {[%clk 0:00:04.3]} 50. Ke3
{[%clk 0:00:05.9]} 50... Rc3+ {[%clk 0:00:03.9]} 51. Kd4 {[%clk 0:00:05.6]}
51... Rxf3 {[%clk 0:00:03.8]} 52. c6 {[%clk 0:00:04.9]} 52... Rxf2 {[%clk
0:00:04.1]} 53. c7 {[%clk 0:00:04.5]} 53... Rc2 {[%clk 0:00:03.3]} 54. Rd8
{[%clk 0:00:02.9]} 54... Rxc7 {[%clk 0:00:02.7]} 55. Rh8 {[%clk 0:00:03.6]}
55... Ke6 {[%clk 0:00:02.7]} 56. Re8+ {[%clk 0:00:03.5]} 56... Kf7 {[%clk
0:00:02.7]} 57. Rh8 {[%clk 0:00:03.5]} 1-0

[Event "Late-Titled-Tuesday-Blitz-December-26-2023"]
[Site "Chess.com"]
[Date "2023.12.26"]
[Round "9"]
[White "GiorgianBarbosa"]
[Black "Maect19"]
[Result "1-0"]
[WhiteElo "2509"]
[BlackElo "2367"]
[TimeControl "180+1"]
[EndTime "15:44:43 PST"]
[Termination "GiorgianBarbosa won on time"]

1. c4 {[%clk 0:03:00.9]} 1... c6 {[%clk 0:02:58.2]} 2. d4 {[%clk 0:03:00.1]}
2... d5 {[%clk 0:02:57.8]} 3. cxd5 {[%clk 0:03:00.6]} 3... cxd5 {[%clk
0:02:57.4]} 4. Nc3 {[%clk 0:03:01.5]} 4... Nf6 {[%clk 0:02:57.6]} 5. Bf4 {[%clk
0:03:01.7]} 5... Qb6 {[%clk 0:02:57.3]} 6. Qd2 {[%clk 0:03:00.4]} 6... Bf5
{[%clk 0:02:49.3]} 7. e3 {[%clk 0:02:59.3]} 7... e6 {[%clk 0:02:49.1]} 8. Bxb8
{[%clk 0:02:48.9]} 8... Rxb8 {[%clk 0:02:46]} 9. Bb5+ {[%clk 0:02:49.3]} 9...
Nd7 {[%clk 0:02:44.1]} 10. Bxd7+ {[%clk 0:02:48.4]} 10... Kxd7 {[%clk
0:02:44.1]} 11. Nf3 {[%clk 0:02:49]} 11... Bb4 {[%clk 0:02:36.2]} 12. Ne5+
{[%clk 0:02:45.4]} 12... Ke7 {[%clk 0:02:30.3]} 13. O-O {[%clk 0:02:31.7]} 13...
Rhc8 {[%clk 0:02:23.5]} 14. f3 {[%clk 0:02:12.9]} 14... f6 {[%clk 0:02:10.4]}
15. e4 {[%clk 0:02:08.9]} 15... fxe5 {[%clk 0:02:05.4]} 16. Qg5+ {[%clk
0:02:07.8]} 16... Kf7 {[%clk 0:02:01.3]} 17. exf5 {[%clk 0:02:05.7]} 17... Qxd4+
{[%clk 0:01:57.3]} 18. Kh1 {[%clk 0:02:03.3]} 18... Bxc3 {[%clk 0:01:49.7]} 19.
fxe6+ {[%clk 0:02:00.3]} 19... Kg8 {[%clk 0:01:49.5]} 20. bxc3 {[%clk
0:01:42.9]} 20... Qf4 {[%clk 0:01:41.4]} 21. Qe7 {[%clk 0:01:36.1]} 21... Qf6
{[%clk 0:01:38.9]} 22. Qd7 {[%clk 0:01:25.5]} 22... Rd8 {[%clk 0:01:35.1]} 23.
Qa4 {[%clk 0:01:22.2]} 23... a6 {[%clk 0:01:26.7]} 24. f4 {[%clk 0:01:09.6]}
24... Qxe6 {[%clk 0:01:21.3]} 25. fxe5 {[%clk 0:01:09.6]} 25... Qxe5 {[%clk
0:01:20.2]} 26. Rae1 {[%clk 0:01:01.1]} 26... Rf8 {[%clk 0:01:09.8]} 27. Qd7
{[%clk 0:00:39.9]} 27... Rxf1+ {[%clk 0:00:38.9]} 28. Rxf1 {[%clk 0:00:40.8]}
28... Rf8 {[%clk 0:00:39.2]} 29. Rxf8+ {[%clk 0:00:39.9]} 29... Kxf8 {[%clk
0:00:39.6]} 30. Qc8+ {[%clk 0:00:39.9]} 30... Qe8 {[%clk 0:00:36.8]} 31. Qf5+
{[%clk 0:00:35.2]} 31... Kg8 {[%clk 0:00:33.3]} 32. Qxd5+ {[%clk 0:00:34.5]}
32... Qf7 {[%clk 0:00:25.3]} 33. Qd8+ {[%clk 0:00:33.4]} 33... Qf8 {[%clk
0:00:25.4]} 34. Qd5+ {[%clk 0:00:30.4]} 34... Qf7 {[%clk 0:00:25.6]} 35. Qd8+
{[%clk 0:00:21.9]} 35... Qf8 {[%clk 0:00:25.8]} 36. Qd1 {[%clk 0:00:20.5]} 36...
Qc5 {[%clk 0:00:23.2]} 37. Qb3+ {[%clk 0:00:19.2]} 37... Kf8 {[%clk 0:00:20.4]}
38. Qxb7 {[%clk 0:00:17.8]} 38... Qxc3 {[%clk 0:00:20.3]} 39. Qa8+ {[%clk
0:00:18.1]} 39... Kf7 {[%clk 0:00:20]} 40. Qb7+ {[%clk 0:00:18.3]} 40... Kf8
{[%clk 0:00:20.2]} 41. Qb8+ {[%clk 0:00:10.2]} 41... Kf7 {[%clk 0:00:20.4]} 42.
h3 {[%clk 0:00:10]} 42... Qa1+ {[%clk 0:00:19.7]} 43. Kh2 {[%clk 0:00:10.2]}
43... Qxa2 {[%clk 0:00:20.3]} 44. Qc7+ {[%clk 0:00:07.1]} 44... Kf6 {[%clk
0:00:20.5]} 45. Qd6+ {[%clk 0:00:07.2]} 45... Qe6 {[%clk 0:00:19.5]} 46. Qd8+
{[%clk 0:00:07.4]} 46... Kf7 {[%clk 0:00:19.4]} 47. Qc7+ {[%clk 0:00:06.6]}
47... Kg6 {[%clk 0:00:18.5]} 48. Qc2+ {[%clk 0:00:05.9]} 48... Qf5 {[%clk
0:00:17.4]} 49. Qa2 {[%clk 0:00:05.5]} 49... Qe5+ {[%clk 0:00:16.5]} 50. Kh1
{[%clk 0:00:05.7]} 50... a5 {[%clk 0:00:16.9]} 51. Qb1+ {[%clk 0:00:04.4]} 51...
Qf5 {[%clk 0:00:17.1]} 52. Qa1 {[%clk 0:00:04.9]} 52... Qb5 {[%clk 0:00:12.8]}
53. Qc1 {[%clk 0:00:04.4]} 53... a4 {[%clk 0:00:12]} 54. Qc2+ {[%clk 0:00:04.8]}
54... Kf6 {[%clk 0:00:12]} 55. Qc3+ {[%clk 0:00:04.8]} 55... Kf7 {[%clk
0:00:10.8]} 56. Qc7+ {[%clk 0:00:03.6]} 56... Kf6 {[%clk 0:00:09]} 57. Qc3+
{[%clk 0:00:03]} 57... Ke6 {[%clk 0:00:08.4]} 58. Qe3+ {[%clk 0:00:02.9]} 58...
Kd6 {[%clk 0:00:07.5]} 59. Qd4+ {[%clk 0:00:02.9]} 59... Kc6 {[%clk 0:00:07.3]}
60. Qxg7 {[%clk 0:00:03.2]} 60... a3 {[%clk 0:00:05.9]} 61. Qf6+ {[%clk
0:00:03.7]} 61... Kb7 {[%clk 0:00:04.2]} 62. Qe7+ {[%clk 0:00:03.8]} 62... Kc6
{[%clk 0:00:03.1]} 63. Qxa3 {[%clk 0:00:04.7]} 63... Qf1+ {[%clk 0:00:02.3]} 64.
Kh2 {[%clk 0:00:03.7]} 64... Qf5 {[%clk 0:00:02.1]} 65. Qg3 {[%clk 0:00:04.4]}
1-0

[Event "Late-Titled-Tuesday-Blitz-December-26-2023"]
[Site "Chess.com"]
[Date "2023.12.26"]
[Round "9"]
[White "MPCandelario"]
[Black "GlavkonVVS"]
[Result "1-0"]
[WhiteElo "2667"]
[BlackElo "2530"]
[TimeControl "180+1"]
[EndTime "15:44:51 PST"]
[Termination "MPCandelario won by resignation"]

1. e4 {[%clk 0:03:00.9]} 1... Nf6 {[%clk 0:03:00.3]} 2. e5 {[%clk 0:03:00.6]}
2... Nd5 {[%clk 0:03:00.5]} 3. Nc3 {[%clk 0:03:00.7]} 3... Nb6 {[%clk
0:03:00.5]} 4. a4 {[%clk 0:02:54.6]} 4... a5 {[%clk 0:03:00.3]} 5. Nf3 {[%clk
0:02:45.8]} 5... d6 {[%clk 0:03:00.5]} 6. exd6 {[%clk 0:02:43.8]} 6... exd6
{[%clk 0:02:57.9]} 7. d4 {[%clk 0:02:42.7]} 7... Be7 {[%clk 0:02:58.4]} 8. Bd3
{[%clk 0:02:39.4]} 8... O-O {[%clk 0:02:57.5]} 9. h3 {[%clk 0:02:38.1]} 9... Nc6
{[%clk 0:02:56.9]} 10. O-O {[%clk 0:02:37.1]} 10... Nb4 {[%clk 0:02:57.2]} 11.
Re1 {[%clk 0:02:24.1]} 11... Be6 {[%clk 0:02:40.3]} 12. Bf1 {[%clk 0:02:15.9]}
12... Bf5 {[%clk 0:02:37.3]} 13. Re2 {[%clk 0:02:15.6]} 13... Re8 {[%clk
0:02:33.9]} 14. Be3 {[%clk 0:02:12.1]} 14... Nc4 {[%clk 0:02:27.5]} 15. b3
{[%clk 0:02:04.3]} 15... Nxe3 {[%clk 0:02:27.2]} 16. fxe3 {[%clk 0:02:04.8]}
16... Bf8 {[%clk 0:02:17.6]} 17. e4 {[%clk 0:02:03.2]} 17... Bg6 {[%clk
0:02:17.5]} 18. Qd2 {[%clk 0:02:00.8]} 18... Bh5 {[%clk 0:02:05.2]} 19. g4
{[%clk 0:01:58.6]} 19... Bg6 {[%clk 0:02:05]} 20. Rae1 {[%clk 0:01:52.1]} 20...
c5 {[%clk 0:02:01.9]} 21. d5 {[%clk 0:01:33.2]} 21... Rc8 {[%clk 0:01:45.8]} 22.
Rf2 {[%clk 0:01:31.3]} 22... h5 {[%clk 0:01:35]} 23. g5 {[%clk 0:01:24.6]} 23...
Qb6 {[%clk 0:00:56.3]} 24. Nh4 {[%clk 0:01:10.7]} 24... Re5 {[%clk 0:00:50.5]}
25. Nxg6 {[%clk 0:01:10.1]} 25... fxg6 {[%clk 0:00:50.7]} 26. h4 {[%clk
0:01:09.5]} 26... Rce8 {[%clk 0:00:46]} 27. Bc4 {[%clk 0:01:09.2]} 27... Kh7
{[%clk 0:00:33.1]} 28. Kg2 {[%clk 0:01:09.3]} 28... Qd8 {[%clk 0:00:27]} 29. Rf7
{[%clk 0:01:05.5]} 29... Be7 {[%clk 0:00:25.4]} 30. Ref1 {[%clk 0:00:59.8]}
30... Rf8 {[%clk 0:00:20.5]} 31. Rxf8 {[%clk 0:00:58.7]} 31... Bxf8 {[%clk
0:00:20.9]} 32. Rf3 {[%clk 0:00:55.5]} 32... Be7 {[%clk 0:00:20.9]} 33. Rf2
{[%clk 0:00:54.9]} 33... Bxg5 {[%clk 0:00:20]} 34. hxg5 {[%clk 0:00:54.4]} 34...
Rxg5+ {[%clk 0:00:20.6]} 35. Kf1 {[%clk 0:00:54]} 35... Rg4 {[%clk 0:00:20.2]}
36. Qe3 {[%clk 0:00:51.8]} 36... Qh4 {[%clk 0:00:19.5]} 37. Bd3 {[%clk
0:00:44.1]} 37... Rg3 {[%clk 0:00:19.1]} 38. Qf4 {[%clk 0:00:40.9]} 38... Qh1+
{[%clk 0:00:18]} 39. Ke2 {[%clk 0:00:40.4]} 39... Rg4 {[%clk 0:00:17.4]} 40. Qf3
{[%clk 0:00:38.5]} 40... Qc1 {[%clk 0:00:17.5]} 41. Qe3 {[%clk 0:00:36.6]} 41...
Qb2 {[%clk 0:00:16.8]} 42. Qd2 {[%clk 0:00:36.2]} 42... Qa1 {[%clk 0:00:16.3]}
43. Nd1 {[%clk 0:00:36]} 43... Qe5 {[%clk 0:00:15.7]} 44. Qe3 {[%clk 0:00:34.4]}
44... Rg3 {[%clk 0:00:13]} 45. Rf3 {[%clk 0:00:34.3]} 45... Rxf3 {[%clk
0:00:13.4]} 46. Qxf3 {[%clk 0:00:33.8]} 46... Nxd5 {[%clk 0:00:13.7]} 47. Kd2
{[%clk 0:00:32.7]} 47... Nf4 {[%clk 0:00:13.7]} 48. Ne3 {[%clk 0:00:31.7]} 48...
g5 {[%clk 0:00:12.4]} 49. Nd5 {[%clk 0:00:31.2]} 49... Ng6 {[%clk 0:00:05.2]}
50. Qxh5+ {[%clk 0:00:30.8]} 50... Kg8 {[%clk 0:00:05.4]} 51. Qxg6 {[%clk
0:00:31.1]} 51... Qh2+ {[%clk 0:00:05.3]} 52. Kc3 {[%clk 0:00:30.3]} 52... Qe5+
{[%clk 0:00:05.4]} 53. Kc4 {[%clk 0:00:30.1]} 53... Qd4+ {[%clk 0:00:05.5]} 54.
Kb5 {[%clk 0:00:30.7]} 54... c4 {[%clk 0:00:05.7]} 55. Ne7+ {[%clk 0:00:06.4]}
55... Kf8 {[%clk 0:00:06]} 56. Qf5+ {[%clk 0:00:06.3]} 56... Kxe7 {[%clk
0:00:05.1]} 57. Bxc4 {[%clk 0:00:06.9]} 57... Qe5+ {[%clk 0:00:04.1]} 58. Qxe5+
{[%clk 0:00:05.9]} 58... dxe5 {[%clk 0:00:05]} 59. Be2 {[%clk 0:00:05.7]} 59...
Kd6 {[%clk 0:00:05]} 60. c3 {[%clk 0:00:05.1]} 60... g4 {[%clk 0:00:03.8]} 61.
Bxg4 {[%clk 0:00:04.1]} 61... Kc7 {[%clk 0:00:04.7]} 62. Kxa5 {[%clk 0:00:04]}
62... b6+ {[%clk 0:00:05.6]} 63. Kb5 {[%clk 0:00:04.4]} 63... g5 {[%clk
0:00:05.7]} 64. b4 {[%clk 0:00:04.7]} 64... Kb7 {[%clk 0:00:06.1]} 65. c4 {[%clk
0:00:05.1]} 65... Kc7 {[%clk 0:00:06.3]} 66. Ka6 {[%clk 0:00:05.2]} 66... Kc6
{[%clk 0:00:06.5]} 67. Bf5 {[%clk 0:00:03.6]} 67... Kc7 {[%clk 0:00:06.1]} 68.
Kb5 {[%clk 0:00:04.2]} 68... Kb7 {[%clk 0:00:06.5]} 69. Bg4 {[%clk 0:00:04.8]}
69... Kc7 {[%clk 0:00:07]} 70. c5 {[%clk 0:00:04.9]} 70... bxc5 {[%clk
0:00:07.4]} 71. Kxc5 {[%clk 0:00:05.8]} 71... Kb7 {[%clk 0:00:07.9]} 72. Kd5
{[%clk 0:00:06.7]} 72... Kb6 {[%clk 0:00:08.2]} 73. Kxe5 {[%clk 0:00:07.6]}
73... Kc6 {[%clk 0:00:08.7]} 74. Kf5 {[%clk 0:00:08.2]} 74... Kd6 {[%clk
0:00:09.3]} 75. Kxg5 {[%clk 0:00:08.9]} 75... Ke5 {[%clk 0:00:10.2]} 76. Bf5
{[%clk 0:00:08.8]} 76... Kd4 {[%clk 0:00:10.8]} 77. a5 {[%clk 0:00:09.6]} 77...
Kc4 {[%clk 0:00:10.7]} 78. a6 {[%clk 0:00:10.2]} 1-0